[Event "FIDE WCCC Girls-12 2024"]
[Site "Montesilvano"]
[Date "2024.11.18"]
[Round "3.1"]
[White "Bassari, Senem Gul"]
[Black "Pratitee Bordoloi"]
[Result "1-0"]
[ECO "B11"]
[WhiteElo "1778"]
[BlackElo "1929"]
[PlyCount "101"]
[EventDate "2024.11.18"]
[EventType "swiss"]
[EventCountry "ITA"]
[TimeControl "5400+30"]

1. e4 {[%emt 0:00:13]} c6 {[%emt 0:00:11]} 2. Nc3 {[%emt 0:00:17]} d5 {[%emt 0:00:14]} 3. Nf3 {[%emt 0:00:25]} Bg4 {[%emt 0:00:34]} 4. h3 {[%emt 0:00:11]} Bxf3 {[%emt 0:00:09]} 5. Qxf3 {[%emt 0:00:07]} e6 {[%emt 0:00:07]} 6. d4 {[%emt 0:00:48]} Nf6 {[%emt 0:00:24]} 7. Bd3 {[%emt 0:00:25]} dxe4 {[%emt 0:01:11]} 8. Nxe4 {[%emt 0:00:09]} Be7 {[%emt 0:03:55]} 9. Nxf6+ {[%emt 0:02:39]} Bxf6 {[%emt 0:00:09]} 10. c3 {[%emt 0:00:09]} Nd7 {[%emt 0:00:34]} 11. Bf4 {[%emt 0:03:42]} Qb6 {[%emt 0:03:15]} 12. O-O-O {[%emt 0:08:38]} a5 {[%emt 0:03:17]} 13. Bd6 {[%emt 0:11:11]} O-O-O {[%emt 0:04:57]} 14. Kb1 {[%emt 0:08:03]} g6 {[%emt 0:05:26]} 15. Rhe1 {[%emt 0:05:38]} Rhe8 {[%emt 0:02:46]} 16. Qf4 {[%emt 0:08:49]} Be7 {[%emt 0:05:26]} 17. Bxe7 {[%emt 0:00:35]} Rxe7 {[%emt 0:00:02]} 18. Qh4 {[%emt 0:00:13]} f6 {[%emt 0:02:43]} 19. Bc4 {[%emt 0:03:56]} Rde8 {[%emt 0:01:33]} 20. Re2 {[%emt 0:01:21]} Qc7 {[%emt 0:03:58]} 21. Rde1 {[%emt 0:02:18]} Qd6 {[%emt 0:01:44]} 22. Bb3 {[%emt 0:04:52]} e5 {[%emt 0:13:12]} 23. Qg3 {[%emt 0:02:02]} c5 {[%emt 0:09:32]} 24. Rd1 {[%emt 0:12:35]} Qa6 {[%emt 0:06:15]} 25. Rde1 {[%emt 0:03:09]} e4 {[%emt 0:06:20]} 26. Bc2 {[%emt 0:02:19]} f5 {[%emt 0:01:30]} 27. f3 {[%emt 0:01:32]} e3 {[%emt 0:06:33]} 28. Qf4 {[%emt 0:03:11]} Qe6 {[%emt 0:03:09]} 29. Ba4 {[%emt 0:01:34]} c4 {[%emt 0:02:15]} 30. Kc1 {[%emt 0:13:01]} Nb6 {[%emt 0:05:50]} 31. d5 {[%emt 0:01:18]} g5 {[%emt 0:04:12]} 32. Qd4 {[%emt 0:00:34]} Nxd5 {[%emt 0:00:27]} 33. Bxe8 {[%emt 0:00:24]} Rxe8 {[%emt 0:00:24]} 34. Qxc4+ {[%emt 0:00:26]} Kb8 {[%emt 0:00:19]} 35. Qd4 {[%emt 0:00:39]} f4 {[%emt 0:02:31]} 36. Rd1 {[%emt 0:00:32]} Nf6 {[%emt 0:00:35]} 37. h4 {[%emt 0:00:30]} h6 {[%emt 0:00:32]} 38. hxg5 {[%emt 0:00:20]} hxg5 {[%emt 0:00:08]} 39. Qc5 {[%emt 0:00:34]} Qe5 {[%emt 0:01:41]} 40. Rd8+ {[%emt 0:00:12]} Rxd8 {[%emt 0:00:47]} 41. Qxe5+ {[%emt 0:00:06]} Ka7 {[%emt 0:00:05]} 42. Qxa5+ {[%emt 0:00:04]} Kb8 {[%emt 0:00:12]} 43. Qxd8+ {[%emt 0:00:07]} Ka7 {[%emt 0:00:06]} 44. Qxf6 {[%emt 0:00:04]} b6 {[%emt 0:00:10]} 45. Re1 {[%emt 0:00:06]} Ka6 {[%emt 0:00:04]} 46. Rd1 {[%emt 0:00:06]} e2 {[%emt 0:00:09]} 47. Re1 {[%emt 0:00:03]} Ka5 {[%emt 0:00:06]} 48. Rxe2 {[%emt 0:00:06]} Ka6 {[%emt 0:00:05]} 49. Re6 {[%emt 0:00:05]} Ka7 {[%emt 0:00:10]} 50. Rxb6 {[%emt 0:00:04]} g4 {[%emt 0:00:09]} 51. Re6 {[%emt 0:00:08]} 1-0

[Event "FIDE WCCC Girls-12 2024"]
[Site "Montesilvano"]
[Date "2024.11.18"]
[Round "3.2"]
[White "Zavivaeva, Kristina"]
[Black "Buyankhishig, Batpelden"]
[Result "1/2-1/2"]
[ECO "A11"]
[WhiteElo "1775"]
[BlackElo "1867"]
[PlyCount "195"]
[EventDate "2024.11.18"]
[EventType "swiss"]
[EventCountry "ITA"]
[TimeControl "5400+30"]

1. Nf3 {[%emt 0:00:02]} d5 {[%emt 0:00:40]} 2. g3 {[%emt 0:00:31]} Nf6 {[%emt 0:00:38]} 3. Bg2 {[%emt 0:00:21]} Bf5 {[%emt 0:00:29]} 4. O-O {[%emt 0:01:03]} e6 {[%emt 0:00:15]} 5. c4 {[%emt 0:00:09]} c6 {[%emt 0:03:06]} 6. cxd5 {[%emt 0:00:59]} exd5 {[%emt 0:01:01]} 7. d3 {[%emt 0:00:43]} Bd6 {[%emt 0:03:40]} 8. Nc3 {[%emt 0:01:30]} O-O {[%emt 0:00:30]} 9. Qb3 {[%emt 0:02:54]} Qb6 {[%emt 0:04:04]} 10. Qc2 {[%emt 0:01:06]} Re8 {[%emt 0:02:45]} 11. Re1 {[%emt 0:02:12]} Nbd7 {[%emt 0:06:16]} 12. e4 {[%emt 0:03:53]} Bg4 {[%emt 0:03:15]} 13. Be3 {[%emt 0:02:11]} Qa6 {[%emt 0:03:36]} 14. Nh4 {[%emt 0:04:04]} Rac8 {[%emt 0:05:56]} 15. h3 {[%emt 0:04:20]} Bh5 {[%emt 0:01:49]} 16. f4 {[%emt 0:04:29]} dxe4 {[%emt 0:09:00]} 17. dxe4 {[%emt 0:00:11]} Bc5 {[%emt 0:01:17]} 18. g4 {[%emt 0:07:56]} Bxe3+ {[%emt 0:04:43]} 19. Rxe3 {[%emt 0:00:06]} Qb6 {[%emt 0:01:44]} 20. Rae1 {[%emt 0:08:38]} Bxg4 {[%emt 0:01:28]} 21. Na4 {[%emt 0:01:49]} Qb4 {[%emt 0:12:51]} 22. hxg4 {[%emt 0:04:27]} Nxg4 {[%emt 0:00:13]} 23. Qb3 {[%emt 0:18:35]} Qd2 {[%emt 0:07:43]} 24. R1e2 {[%emt 0:09:45]} Qc1+ {[%emt 0:02:02]} 25. Re1 {[%emt 0:00:23]} Qd2 {[%emt 0:00:18]} 26. R1e2 {[%emt 0:00:47]} Qd6 {[%emt 0:05:33]} 27. Bh3 {[%emt 0:08:47]} Nxe3 {[%emt 0:02:02]} 28. Qxe3 {[%emt 0:00:08]} Rcd8 {[%emt 0:03:07]} 29. Nc3 {[%emt 0:01:27]} Nf8 {[%emt 0:03:03]} 30. Nf5 {[%emt 0:01:46]} Qb4 {[%emt 0:00:15]} 31. Qxa7 {[%emt 0:01:29]} Rd3 {[%emt 0:01:59]} 32. Bg2 {[%emt 0:00:28]} b6 {[%emt 0:01:50]} 33. Qc7 {[%emt 0:02:42]} Qc5+ {[%emt 0:00:58]} 34. Kh2 {[%emt 0:00:45]} Rd7 {[%emt 0:00:17]} 35. Na4 {[%emt 0:01:30]} Qc4 {[%emt 0:02:15]} 36. Nxb6 {[%emt 0:00:24]} Qxe2 {[%emt 0:01:06]} 37. Nxd7 {[%emt 0:00:11]} Qh5+ {[%emt 0:01:48]} 38. Kg3 {[%emt 0:00:30]} Ne6 {[%emt 0:02:08]} 39. Qxc6 {[%emt 0:01:39]} Qg6+ {[%emt 0:00:43]} 40. Kf2 {[%emt 0:00:10]} f6 {[%emt 0:01:18]} 41. Nh4 {[%emt 0:01:12]} Qh5 {[%emt 0:00:48]} 42. Kg3 {[%emt 0:01:55]} Nxf4 {[%emt 0:00:21]} 43. Kxf4 {[%emt 0:01:24]} Qxh4+ {[%emt 0:00:07]} 44. Kf3 {[%emt 0:00:15]} Rd8 {[%emt 0:00:51]} 45. Qc7 {[%emt 0:00:26]} Qh5+ {[%emt 0:00:14]} 46. Kf2 {[%emt 0:00:07]} Re8 {[%emt 0:01:00]} 47. a4 {[%emt 0:00:51]} Qh4+ {[%emt 0:00:51]} 48. Qg3 {[%emt 0:00:52]} Qh6 {[%emt 0:00:03]} 49. Qe3 {[%emt 0:00:35]} Qh4+ {[%emt 0:00:02]} 50. Kf1 {[%emt 0:00:12]} Rd8 {[%emt 0:00:59]} 51. Qd2 {[%emt 0:01:13]} Kh8 {[%emt 0:00:18]} 52. b4 {[%emt 0:01:08]} Qg4 {[%emt 0:01:39]} 53. Nxf6 {[%emt 0:00:18]} Rf8 {[%emt 0:00:10]} 54. b5 {[%emt 0:01:03]} Rxf6+ {[%emt 0:00:08]} 55. Kg1 {[%emt 0:00:04]} h5 {[%emt 0:00:48]} 56. b6 {[%emt 0:00:18]} Rf7 {[%emt 0:00:34]} 57. Qd5 {[%emt 0:00:49]} Rd7 {[%emt 0:00:43]} 58. b7 {[%emt 0:00:20]} Rxb7 {[%emt 0:01:26]} 59. Qxb7 {[%emt 0:00:06]} Qd1+ {[%emt 0:00:02]} 60. Kh2 {[%emt 0:00:08]} Qxa4 {[%emt 0:00:10]} 61. Qc8+ {[%emt 0:00:20]} Kh7 {[%emt 0:00:01]} 62. Qf5+ {[%emt 0:00:09]} Kh6 {[%emt 0:00:41]} 63. Qf4+ {[%emt 0:00:05]} Kh7 {[%emt 0:00:08]} 64. Qg5 {[%emt 0:00:16]} Qe8 {[%emt 0:00:56]} 65. e5 {[%emt 0:00:17]} Qg6 {[%emt 0:00:51]} 66. Qf4 {[%emt 0:00:33]} Qe6 {[%emt 0:00:33]} 67. Be4+ {[%emt 0:01:09]} Kg8 {[%emt 0:00:07]} 68. Kg3 {[%emt 0:00:46]} g6 {[%emt 0:01:11]} 69. Qg5 {[%emt 0:01:10]} Kg7 {[%emt 0:00:02]} 70. Kh4 {[%emt 0:00:45]} Qf7 {[%emt 0:00:49]} 71. Qg3 {[%emt 0:01:20]} Qe7+ {[%emt 0:00:25]} 72. Kh3 {[%emt 0:00:41]} Qe6+ {[%emt 0:00:00]} 73. Kh2 {[%emt 0:00:17]} Qa2+ {[%emt 0:00:40]} 74. Bg2 {[%emt 0:00:11]} Qc4 {[%emt 0:01:07]} 75. Qf2 {[%emt 0:00:29]} Qe6 {[%emt 0:00:51]} 76. Qd4 {[%emt 0:00:06]} Kh6 {[%emt 0:00:04]} 77. Bd5 {[%emt 0:00:26]} Qa6 {[%emt 0:00:27]} 78. e6 {[%emt 0:01:16]} Qe2+ {[%emt 0:00:05]} 79. Kg3 {[%emt 0:00:11]} Qe1+ {[%emt 0:00:19]} 80. Qf2 {[%emt 0:00:38]} Qc3+ {[%emt 0:00:57]} 81. Kg2 {[%emt 0:00:20]} Qe5 {[%emt 0:00:20]} 82. Qf8+ {[%emt 0:01:01]} Kg5 {[%emt 0:01:17]} 83. Qd8+ {[%emt 0:00:14]} Kf4 {[%emt 0:00:08]} 84. Qh4+ {[%emt 0:00:53]} Kf5 {[%emt 0:00:18]} 85. Qf2+ {[%emt 0:00:34]} Kg5 {[%emt 0:00:39]} 86. Qf3 {[%emt 0:00:27]} Kh6 {[%emt 0:00:59]} 87. Kh3 {[%emt 0:00:25]} g5 {[%emt 0:00:30]} 88. Qf8+ {[%emt 0:00:22]} Kg6 {[%emt 0:00:20]} 89. Qg8+ {[%emt 0:00:42]} Kh6 {[%emt 0:00:11]} 90. Qf8+ {[%emt 0:00:27]} Kg6 {[%emt 0:00:01]} 91. Qe8+ {[%emt 0:00:29]} Kh6 {[%emt 0:00:49]} 92. Qf8+ {[%emt 0:00:26]} Kg6 {[%emt 0:00:01]} 93. Qg8+ {[%emt 0:00:28]} Kh6 {[%emt 0:00:05]} 94. Qf8+ {[%emt 0:00:32]} Kg6 {[%emt 0:00:00]} 95. Qe8+ {[%emt 0:00:09]} Kh6 {[%emt 0:00:05]} 96. Qf8+ {[%emt 0:00:08]} Kg6 {[%emt 0:00:00]} 97. Qg8+ {[%emt 0:00:20]} Kh6 {[%emt 0:00:02]} 98. Qf8+ {[%emt 0:00:17]} 1/2-1/2

[Event "FIDE WCCC Girls-12 2024"]
[Site "Montesilvano"]
[Date "2024.11.18"]
[Round "3.3"]
[White "Ahmed Mohamed, Zakaa"]
[Black "Tu, Audrey"]
[Result "0-1"]
[ECO "C54"]
[WhiteElo "1866"]
[BlackElo "1765"]
[PlyCount "106"]
[EventDate "2024.11.18"]
[EventType "swiss"]
[EventCountry "ITA"]
[TimeControl "5400+30"]

1. e4 {[%emt 0:00:02]} e5 {[%emt 0:00:04]} 2. Nf3 {[%emt 0:00:12]} Nc6 {[%emt 0:00:05]} 3. Bc4 {[%emt 0:00:06]} Bc5 {[%emt 0:00:05]} 4. c3 {[%emt 0:00:10]} Nf6 {[%emt 0:00:04]} 5. d3 {[%emt 0:00:09]} a6 {[%emt 0:00:11]} 6. Bb3 {[%emt 0:00:05]} d6 {[%emt 0:00:49]} 7. O-O {[%emt 0:00:09]} Ba7 {[%emt 0:01:10]} 8. Re1 {[%emt 0:00:20]} O-O {[%emt 0:00:11]} 9. h3 {[%emt 0:00:05]} h6 {[%emt 0:01:15]} 10. Nbd2 {[%emt 0:00:16]} Be6 {[%emt 0:01:20]} 11. Bc2 {[%emt 0:00:21]} Nh7 {[%emt 0:06:34]} 12. Nf1 {[%emt 0:02:02]} Qf6 {[%emt 0:11:24]} 13. Ng3 {[%emt 0:03:52]} g5 {[%emt 0:09:32]} 14. Be3 {[%emt 0:11:37]} Bxe3 {[%emt 0:03:25]} 15. Rxe3 {[%emt 0:00:11]} Ne7 {[%emt 0:02:48]} 16. d4 {[%emt 0:03:57]} Ng6 {[%emt 0:01:49]} 17. Nh5 {[%emt 0:02:34]} Qe7 {[%emt 0:02:05]} 18. Nh2 {[%emt 0:08:03]} Nf6 {[%emt 0:04:00]} 19. Nxf6+ {[%emt 0:00:52]} Qxf6 {[%emt 0:00:19]} 20. Rf3 {[%emt 0:02:46]} Qg7 {[%emt 0:10:26]} 21. Nf1 {[%emt 0:02:48]} Nf4 {[%emt 0:05:47]} 22. Kh1 {[%emt 0:01:39]} Kh8 {[%emt 0:04:49]} 23. Ne3 {[%emt 0:02:10]} Rg8 {[%emt 0:04:38]} 24. Bb3 {[%emt 0:01:41]} g4 {[%emt 0:04:16]} 25. Rg3 {[%emt 0:02:49]} Nh5 {[%emt 0:01:10]} 26. Bxe6 {[%emt 0:00:39]} Nxg3+ {[%emt 0:00:17]} 27. fxg3 {[%emt 0:00:09]} fxe6 {[%emt 0:00:17]} 28. dxe5 {[%emt 0:00:27]} gxh3 {[%emt 0:02:33]} 29. Qh5 {[%emt 0:01:31]} hxg2+ {[%emt 0:01:16]} 30. Nxg2 {[%emt 0:00:10]} Qg5 {[%emt 0:01:31]} 31. Qh3 {[%emt 0:00:30]} Rg7 {[%emt 0:04:36]} 32. Kh2 {[%emt 0:01:41]} Rag8 {[%emt 0:01:13]} 33. exd6 {[%emt 0:01:27]} cxd6 {[%emt 0:01:09]} 34. Kg1 {[%emt 0:01:41]} Qxg3 {[%emt 0:01:22]} 35. Qxh6+ {[%emt 0:00:11]} Rh7 {[%emt 0:00:08]} 36. Qf6+ {[%emt 0:00:06]} Qg7 {[%emt 0:00:13]} 37. Qf3 {[%emt 0:00:08]} Qh6 {[%emt 0:01:22]} 38. Rf1 {[%emt 0:01:32]} Qh2+ {[%emt 0:01:00]} 39. Kf2 {[%emt 0:00:08]} Rxg2+ {[%emt 0:00:56]} 40. Ke1 {[%emt 0:01:43]} Qg3+ {[%emt 0:00:39]} 41. Qxg3 {[%emt 0:00:10]} Rxg3 {[%emt 0:00:06]} 42. Ke2 {[%emt 0:00:19]} Rh2+ {[%emt 0:00:17]} 43. Kd1 {[%emt 0:00:10]} Rxb2 {[%emt 0:00:42]} 44. Kc1 {[%emt 0:00:13]} Rxa2 {[%emt 0:00:14]} 45. Kb1 {[%emt 0:00:05]} Rag2 {[%emt 0:00:47]} 46. e5 {[%emt 0:00:07]} Rg1 {[%emt 0:00:14]} 47. Rxg1 {[%emt 0:00:08]} Rxg1+ {[%emt 0:00:04]} 48. Kc2 {[%emt 0:00:05]} dxe5 {[%emt 0:00:04]} 49. c4 {[%emt 0:00:05]} e4 {[%emt 0:00:07]} 50. c5 {[%emt 0:00:03]} e3 {[%emt 0:00:09]} 51. Kd3 {[%emt 0:00:04]} Rg3 {[%emt 0:00:08]} 52. c6 {[%emt 0:00:05]} bxc6 {[%emt 0:00:05]} 53. Ke2 {[%emt 0:00:09]} a5 {[%emt 0:00:11]} 0-1

[Event "FIDE WCCC Girls-12 2024"]
[Site "Montesilvano"]
[Date "2024.11.18"]
[Round "3.4"]
[White "Tran Le Vy"]
[Black "Sinkar, Anagha Aniket"]
[Result "0-1"]
[ECO "B22"]
[WhiteElo "1854"]
[BlackElo "1723"]
[PlyCount "124"]
[EventDate "2024.11.18"]
[EventType "swiss"]
[EventCountry "ITA"]
[TimeControl "5400+30"]

1. e4 {[%emt 0:01:56]} c5 {[%emt 0:00:26]} 2. Nf3 {[%emt 0:00:31]} Nc6 {[%emt 0:01:08]} 3. c3 {[%emt 0:00:09]} Nf6 {[%emt 0:00:37]} 4. e5 {[%emt 0:02:09]} Nd5 {[%emt 0:00:54]} 5. d4 {[%emt 0:01:08]} cxd4 {[%emt 0:01:09]} 6. cxd4 {[%emt 0:00:30]} d6 {[%emt 0:01:14]} 7. Bc4 {[%emt 0:06:39]} Nb6 {[%emt 0:01:39]} 8. Bd3 {[%emt 0:11:32]} g6 {[%emt 0:03:38]} 9. O-O {[%emt 0:07:00]} Bg7 {[%emt 0:02:02]} 10. Bf4 {[%emt 0:04:45]} dxe5 {[%emt 0:16:40]} 11. dxe5 {[%emt 0:01:39]} O-O {[%emt 0:01:53]} 12. Nc3 {[%emt 0:10:55]} Bg4 {[%emt 0:03:34]} 13. Re1 {[%emt 0:01:14]} Nd7 {[%emt 0:02:06]} 14. Be2 {[%emt 0:04:18]} Bxf3 {[%emt 0:02:04]} 15. Bxf3 {[%emt 0:00:11]} Ndxe5 {[%emt 0:01:15]} 16. Bxe5 {[%emt 0:05:55]} Nxe5 {[%emt 0:00:58]} 17. Qb3 {[%emt 0:10:11]} Nxf3+ {[%emt 0:06:36]} 18. gxf3 {[%emt 0:00:10]} e6 {[%emt 0:02:20]} 19. Ne4 {[%emt 0:04:15]} Qe7 {[%emt 0:02:33]} 20. f4 {[%emt 0:03:42]} Qh4 {[%emt 0:03:17]} 21. Qg3 {[%emt 0:04:48]} Qxg3+ {[%emt 0:00:39]} 22. hxg3 {[%emt 0:00:07]} b6 {[%emt 0:00:55]} 23. Re2 {[%emt 0:00:27]} Rac8 {[%emt 0:00:29]} 24. Kg2 {[%emt 0:01:53]} Rc4 {[%emt 0:01:01]} 25. Rae1 {[%emt 0:00:21]} Rd8 {[%emt 0:01:08]} 26. g4 {[%emt 0:02:09]} Rb4 {[%emt 0:04:32]} 27. b3 {[%emt 0:00:15]} Rb5 {[%emt 0:00:42]} 28. g5 {[%emt 0:00:25]} Rf5 {[%emt 0:01:58]} 29. Kg3 {[%emt 0:01:27]} e5 {[%emt 0:00:49]} 30. fxe5 {[%emt 0:00:53]} Bxe5+ {[%emt 0:00:10]} 31. Kh3 {[%emt 0:03:52]} Kg7 {[%emt 0:00:21]} 32. Re3 {[%emt 0:00:35]} Rd5 {[%emt 0:01:22]} 33. Kg4 {[%emt 0:01:06]} Bf4 {[%emt 0:02:03]} 34. Rf3 {[%emt 0:00:30]} Bxg5 {[%emt 0:00:55]} 35. Rxf5 {[%emt 0:00:58]} gxf5+ {[%emt 0:00:06]} 36. Kxg5 {[%emt 0:00:03]} fxe4+ {[%emt 0:00:07]} 37. Kf4 {[%emt 0:00:03]} Rd2 {[%emt 0:00:30]} 38. Ke3 {[%emt 0:00:07]} Rxa2 {[%emt 0:00:09]} 39. Rg1+ {[%emt 0:00:03]} Kf8 {[%emt 0:00:35]} 40. Rh1 {[%emt 0:00:59]} Ra3 {[%emt 0:00:30]} 41. Rxh7 {[%emt 0:00:08]} Rxb3+ {[%emt 0:00:06]} 42. Kxe4 {[%emt 0:00:05]} Rb5 {[%emt 0:00:45]} 43. Rh8+ {[%emt 0:00:14]} Kg7 {[%emt 0:00:16]} 44. Ra8 {[%emt 0:00:04]} a5 {[%emt 0:00:03]} 45. f4 {[%emt 0:00:18]} Kf6 {[%emt 0:00:41]} 46. Ra6 {[%emt 0:00:09]} Ke6 {[%emt 0:00:39]} 47. f5+ {[%emt 0:00:43]} Kf6 {[%emt 0:00:15]} 48. Kd4 {[%emt 0:00:08]} Kxf5 {[%emt 0:00:18]} 49. Kc4 {[%emt 0:00:04]} Rb4+ {[%emt 0:00:06]} 50. Kd5 {[%emt 0:00:05]} Kg4 {[%emt 0:00:26]} 51. Ke5 {[%emt 0:00:11]} f5 {[%emt 0:00:04]} 52. Ra8 {[%emt 0:00:10]} f4 {[%emt 0:00:16]} 53. Rg8+ {[%emt 0:00:08]} Kf3 {[%emt 0:00:06]} 54. Rh8 {[%emt 0:00:04]} Ke3 {[%emt 0:00:30]} 55. Rc8 {[%emt 0:00:26]} f3 {[%emt 0:00:10]} 56. Rc3+ {[%emt 0:00:06]} Kf2 {[%emt 0:00:09]} 57. Rc2+ {[%emt 0:00:06]} Kg1 {[%emt 0:00:09]} 58. Rc1+ {[%emt 0:00:06]} Kg2 {[%emt 0:00:03]} 59. Rc2+ {[%emt 0:00:05]} f2 {[%emt 0:00:03]} 60. Kf5 {[%emt 0:00:05]} Kg1 {[%emt 0:00:04]} 61. Rc1+ {[%emt 0:00:03]} f1=Q+ {[%emt 0:00:16]} 62. Rxf1+ {[%emt 0:00:04]} Kxf1 {[%emt 0:00:07]} 0-1

[Event "FIDE WCCC Girls-12 2024"]
[Site "Montesilvano"]
[Date "2024.11.18"]
[Round "3.5"]
[White "Mozolevskaya, Tatyana Nik"]
[Black "Xu, Luna Yuexiu"]
[Result "1-0"]
[ECO "A07"]
[WhiteElo "1775"]
[BlackElo "1821"]
[PlyCount "113"]
[EventDate "2024.11.18"]
[EventType "swiss"]
[EventCountry "ITA"]
[TimeControl "5400+30"]

1. Nf3 {[%emt 0:00:04]} d5 {[%emt 0:00:15]} 2. g3 {[%emt 0:00:07]} c6 {[%emt 0:00:11]} 3. Bg2 {[%emt 0:00:06]} Bf5 {[%emt 0:00:25]} 4. O-O {[%emt 0:00:09]} Nd7 {[%emt 0:00:11]} 5. d3 {[%emt 0:00:04]} e5 {[%emt 0:00:31]} 6. c4 {[%emt 0:02:30]} Ngf6 {[%emt 0:01:35]} 7. cxd5 {[%emt 0:03:27]} cxd5 {[%emt 0:00:13]} 8. Bg5 {[%emt 0:02:34]} Be7 {[%emt 0:03:39]} 9. Nc3 {[%emt 0:05:18]} d4 {[%emt 0:05:54]} 10. Bxf6 {[%emt 0:00:32]} Nxf6 {[%emt 0:04:25]} 11. Nb1 {[%emt 0:00:56]} Nd7 {[%emt 0:05:13]} 12. Nbd2 {[%emt 0:02:58]} Be6 {[%emt 0:00:48]} 13. Rc1 {[%emt 0:07:32]} O-O {[%emt 0:06:22]} 14. Nc4 {[%emt 0:00:42]} Bf6 {[%emt 0:10:55]} 15. Nfd2 {[%emt 0:08:17]} Rb8 {[%emt 0:03:05]} 16. Nd6 {[%emt 0:08:55]} Nc5 {[%emt 0:08:08]} 17. N6c4 {[%emt 0:09:30]} Qe7 {[%emt 0:10:37]} 18. b4 {[%emt 0:03:16]} Na6 {[%emt 0:02:51]} 19. a3 {[%emt 0:02:45]} Nc7 {[%emt 0:03:40]} 20. Ne4 {[%emt 0:08:46]} Bd5 {[%emt 0:05:16]} 21. Ncd2 {[%emt 0:04:04]} Bc6 {[%emt 0:05:45]} 22. Nxf6+ {[%emt 0:06:11]} Qxf6 {[%emt 0:00:07]} 23. Bxc6 {[%emt 0:00:03]} bxc6 {[%emt 0:00:06]} 24. Rc5 {[%emt 0:01:45]} Nd5 {[%emt 0:03:24]} 25. Ne4 {[%emt 0:00:31]} Qg6 {[%emt 0:01:58]} 26. Qc2 {[%emt 0:00:57]} Rb6 {[%emt 0:02:09]} 27. Rc1 {[%emt 0:02:52]} f5 {[%emt 0:00:20]} 28. Nd2 {[%emt 0:00:16]} Qg4 {[%emt 0:02:11]} 29. Nc4 {[%emt 0:03:12]} Qh3 {[%emt 0:01:47]} 30. Nxb6 {[%emt 0:03:02]} axb6 {[%emt 0:01:26]} 31. Rxd5 {[%emt 0:00:59]} cxd5 {[%emt 0:00:12]} 32. Qc6 {[%emt 0:00:05]} Kh8 {[%emt 0:07:31]} 33. Qc8 {[%emt 0:01:47]} Rg8 {[%emt 0:00:59]} 34. Qe6 {[%emt 0:00:22]} h6 {[%emt 0:01:37]} 35. Qxe5 {[%emt 0:00:53]} Qh5 {[%emt 0:00:18]} 36. Rc7 {[%emt 0:00:54]} Qg6 {[%emt 0:01:43]} 37. Qxd4 {[%emt 0:01:30]} Re8 {[%emt 0:00:44]} 38. Qxd5 {[%emt 0:01:05]} Rxe2 {[%emt 0:00:50]} 39. Rc8+ {[%emt 0:00:08]} Re8 {[%emt 0:00:05]} 40. Rxe8+ {[%emt 0:00:09]} Qxe8 {[%emt 0:00:06]} 41. Qxf5 {[%emt 0:00:03]} Qa8 {[%emt 0:00:11]} 42. Qb5 {[%emt 0:01:02]} Qxa3 {[%emt 0:00:30]} 43. Qxb6 {[%emt 0:00:11]} Qxd3 {[%emt 0:00:20]} 44. Qb8+ {[%emt 0:00:17]} Kh7 {[%emt 0:00:06]} 45. Qb7 {[%emt 0:00:03]} Qb1+ {[%emt 0:00:21]} 46. Kg2 {[%emt 0:00:03]} h5 {[%emt 0:00:44]} 47. h4 {[%emt 0:00:10]} Kg6 {[%emt 0:01:12]} 48. b5 {[%emt 0:00:11]} Qb3 {[%emt 0:00:43]} 49. Qc6+ {[%emt 0:00:18]} Kh7 {[%emt 0:00:16]} 50. b6 {[%emt 0:00:07]} Qb4 {[%emt 0:00:33]} 51. b7 {[%emt 0:00:11]} Qb1 {[%emt 0:00:21]} 52. Qd5 {[%emt 0:01:10]} Kh6 {[%emt 0:03:06]} 53. Qg5+ {[%emt 0:00:14]} Kh7 {[%emt 0:00:08]} 54. Qxh5+ {[%emt 0:00:04]} Kg8 {[%emt 0:00:14]} 55. Qe8+ {[%emt 0:00:06]} Kh7 {[%emt 0:00:19]} 56. b8=Q {[%emt 0:00:07]} Qd3 {[%emt 0:00:27]} 57. Qh5# {[%emt 0:00:04]} 1-0